bitfinex/quotes_SOLUSD_20250621
["timestamp","ask_amount","ask_price","bid_price","bid_amount"]
[1750541499764,10.0,133.63,133.61,26.19564403]
[1750541499971,10.0,133.63,133.61,7.48446972]
[1750541500170,10.0,133.63,133.56,18.71684372]
[1750541500171,10.0,133.6,133.57,7.48671108]
[1750541500354,10.0,133.6,133.54,140.0]
[1750541500355,0.72,133.6,133.54,140.0]
[1750541500551,45.06697709,133.6,133.54,140.0]
[1750541500756,26.72,133.58,133.54,139.31]
[1750541500975,59.54,133.69,133.54,139.31]
[1750541500976,10.0,133.61,133.54,139.31]
[1750541501186,34.34697709,133.55,133.54,139.31]
[1750541501397,34.34697709,133.57,133.54,139.31]
[1750541501557,10.72,133.63,133.54,139.31]
[1750541501558,0.72,133.63,133.54,139.31]
[1750541501759,10.72,133.63,133.54,139.31]
[1750541502006,10.0,133.59,133.54,6.13]
[1750541502170,59.54,133.64,133.51,5.22388807]
[1750541502171,0.73,133.55,133.51,5.22388807]
[1750541502357,26.0,133.4,133.24,11.50819669]
[1750541502594,59.66,133.54,133.22,140.0]
[1750541502595,10.0,133.32,133.25,9.14039029]
[1750541502792,10.0,133.32,133.25,1.6358595]
[1750541503092,10.73,133.29,133.25,1.6358595]
[1750541503391,67.15723444,133.39,133.22,147.50632648]
[1750541503392,36.73,133.23,133.22,140.0]
[1750541503556,96.39,133.23,133.22,14.27234131]
[1750541503757,96.39,133.23,133.06,5.3315971]
[1750541503758,36.73,133.07,133.06,5.3315971]
[1750541503985,0.73,133.07,133.06,9.0022915]
[1750541504559,54.66082136,133.07,133.06,9.0022915]
[1750541504759,10.73,133.01,132.98,1.6740959]
[1750541504960,10.73,132.91,132.9,140.0]
[1750541505459,10.73,132.91,132.9,29.89521094]
[1750541505460,47.14597955,132.91,132.9,29.89521094]
[1750541505677,47.14597955,132.91,132.84,5.38545162]
[1750541505678,10.73,132.71,132.62,5.43930613]
[1750541505993,10.73,132.63,132.62,5.43930613]
[1750541506660,18.27204691,132.59,132.43,1.6740959]
[1750541506870,10.73,132.59,132.58,139.5]
[1750541507062,10.0,132.64,132.58,139.5]
[1750541507274,11.33,132.59,132.58,88.36]
[1750541507485,11.33,132.59,132.43,1.6740959]
[1750541507486,10.73,132.51,132.43,1.6740959]
[1750541507694,10.0,132.44,132.43,1.6740959]
[1750541507910,10.73,132.44,132.43,1.6740959]
[1750541508061,0.73,132.41,132.25,140.0]
[1750541508465,26.0,132.34,132.25,140.0]
[1750541508772,37.91159526,132.56,132.25,140.0]
[1750541508773,8.28452792,132.38,132.25,140.0]
[1750541508976,7.55452792,132.38,132.25,140.0]
[1750541509189,26.0,132.35,132.25,140.0]
[1750541509382,10.74520222,132.5,132.25,140.0]
[1750541509383,7.55311035,132.4,132.25,140.0]
[1750541509593,17.24449473,132.46,132.25,140.0]
[1750541509789,17.24449473,132.46,132.18,5.25255571]
[1750541509790,36.42506605,132.45,132.18,5.25255571]
[1750541509986,0.73,132.21,131.92,37.3111194]
[1750541510320,10.0,132.28,132.02,6.428]
[1750541510321,0.73,132.28,132.02,6.428]
[1750541510606,0.73,132.28,131.95,5.60086968]
[1750541510607,26.46302736,132.26,131.95,5.60086968]
[1750541510815,60.0,132.42,131.95,5.60086968]
[1750541510816,0.73,132.42,132.12,7.9364]
[1750541510974,0.73,132.42,132.13,58.7]
[1750541510975,0.73,132.37,132.13,58.7]
[1750541511168,7.55172934,132.42,132.13,58.7]
[1750541511169,10.73,132.31,132.13,48.7]
[1750541511373,10.0,132.24,132.13,48.7]
[1750541511707,10.62368249,132.41,132.0,51.53]
[1750541511708,10.0,132.11,132.0,51.53]
[1750541511929,27.94810176,132.23,132.0,41.53]
[1750541511930,0.73,132.01,132.0,41.53]
[1750541512121,10.73,132.01,132.0,8.3]
[1750541512413,10.73,131.94,131.93,97.35375364]
[1750541512576,8.30920266,131.94,131.93,97.35375364]
[1750541512776,8.30920266,131.94,131.93,5.63819359]
[1750541512974,8.30920266,131.94,131.61,140.0]
[1750541512975,0.73,131.84,131.61,177.64848056]
[1750541513208,0.73,131.84,131.73,1e-08]
[1750541513209,0.73,131.74,131.73,1e-08]
[1750541513374,0.73,131.74,131.61,140.0]
[1750541513375,0.73,131.66,131.61,140.0]
[1750541513575,10.73,131.62,131.61,132.37140975]
[1750541513777,0.73,131.54,131.51,5.70857871]
[1750541514018,47.14597955,131.52,131.51,5.70857871]
[1750541514178,8.10270098,131.61,131.3,38.25449901]
[1750541514179,0.73,131.49,131.3,38.25449901]
[1750541514379,10.0,131.41,131.3,38.25449901]
[1750541514578,10.0,131.41,131.26,20.73]
[1750541514579,8.34078571,131.4,131.26,10.73]
[1750541514785,8.46663115,131.44,131.27,36.41597955]
[1750541514985,8.33738677,131.46,131.25,10.0]
[1750541515186,10.0,131.41,131.25,10.0]
[1750541515427,0.73,131.4,131.25,10.0]
[1750541515586,0.73,131.33,131.14,10.0]
[1750541515793,0.73,131.33,131.04,48.86]
[1750541515794,36.41597955,131.27,131.23,10.0]
[1750541516097,36.41597955,131.27,131.16,36.41597955]
[1750541516098,9.25544653,131.45,131.28,10.0]
[1750541516283,9.25544653,131.45,131.23,10.0]
[1750541516284,36.41597955,131.29,131.23,10.0]
[1750541516484,36.41597955,131.29,131.07,5.81628775]
[1750541516485,6.09809554,131.44,131.24,10.0]
[1750541516684,6.09809554,131.33,131.23,10.0]
[1750541516999,26.63014531,131.43,131.28,10.0]
[1750541517301,9.25544653,131.45,131.24,49.02]
[1750541517302,16.86322412,131.45,131.3,10.0]
[1750541517623,36.41597955,131.43,131.29,10.0]
[1750541517780,16.86322412,131.45,131.24,49.02]
[1750541517976,1.12247729,131.42,131.24,85.43597955]
[1750541518180,26.62641585,131.45,131.24,59.02]
[1750541518396,26.62641585,131.45,131.24,49.02]
[1750541518606,26.63014531,131.43,131.09,49.02]
[1750541518813,3.31247551,131.42,131.16,36.41597955]
[1750541519109,3.31247551,131.42,131.13,10.0]
[1750541519110,36.41597955,131.26,131.13,10.0]
[1750541519320,36.41597955,131.15,131.09,49.02]
[1750541519486,36.41597955,131.25,131.09,49.02]
[1750541519487,36.41597955,131.13,131.09,49.02]
[1750541519683,8.64499609,131.25,131.09,49.02]
[1750541520015,38.29695178,131.37,131.09,49.02]
[1750541520182,36.41597955,131.25,131.09,49.02]
[1750541520383,38.97112718,131.3,131.09,49.02]
[1750541520584,26.67073077,131.23,131.09,49.02]
[1750541521108,7.6193513,131.25,131.12,46.41597955]
[1750541521312,1.12247729,131.29,131.16,10.0]
[1750541521613,1.12247729,131.29,131.07,6.54628775]
[1750541521614,8.6053132,131.29,131.07,5.81628775]
[1750541521832,8.73816255,131.28,131.09,10.0]
[1750541522032,9.72866423,131.34,131.09,10.0]
[1750541522337,8.73816255,131.33,131.07,5.81628775]
[1750541522505,36.41597955,131.19,131.07,5.81628775]
[1750541522826,38.06333739,131.36,131.07,5.81628775]
[1750541522827,8.6053132,131.3,131.13,10.0]
[1750541523035,8.6053132,131.3,131.07,16.54628775]
[1750541523036,19.04350572,131.28,131.07,16.54628775]
[1750541523201,38.16309295,131.59,131.21,10.0]
[1750541523530,1.12247729,131.37,131.17,0.73]
[1750541523730,36.41597955,131.34,131.21,36.41597955]
[1750541524031,38.1759466,131.56,131.26,10.73]
[1750541524240,22.898141,131.46,131.36,10.0]
[1750541524398,8.42550391,131.56,131.26,0.73]
[1750541524399,36.41597955,131.53,131.41,36.41597955]
[1750541524607,8.42550391,131.57,131.5,36.41597955]
[1750541524825,10.44514017,131.66,131.52,10.0]
[1750541524826,8.42550391,131.63,131.52,10.0]
[1750541525025,8.42550391,131.66,131.58,10.0]
[1750541525232,37.00984373,132.09,131.62,10.0]
[1750541525402,1.2604,132.1,131.59,49.22]
[1750541525403,22.85366,131.75,131.66,10.0]
[1750541525606,11.60235163,131.87,131.59,49.22]
[1750541525607,11.60235163,131.87,131.77,10.0]
[1750541525832,1.75392552,131.99,131.79,10.0]
[1750541526006,102.21852045,132.07,131.88,10.0]
[1750541526216,102.21852045,132.07,131.78,59.95]
[1750541526217,0.06422684,132.06,131.91,10.0]
[1750541526424,0.99,132.31,131.86,6.4484]
[1750541526425,0.99,132.31,132.04,36.41597955]
[1750541526723,0.99,132.31,131.9,10.0]
[1750541526724,0.99,132.31,132.18,10.0]
[1750541526925,22.726412,132.46,132.25,46.41597955]
[1750541527228,49.26,132.75,132.26,10.0]
[1750541527229,4.74119082,132.27,132.26,10.0]
[1750541527453,7.54773945,132.49,132.33,10.0]
[1750541527606,7.54773945,132.49,132.39,10.0]
[1750541527808,7.54773945,132.49,132.42,10.0]
[1750541528042,7.54773945,132.49,132.37,10.0]
[1750541528254,7.54773945,132.49,132.33,49.26]
[1750541528255,7.54773945,132.49,132.43,10.0]
[1750541528534,37.4060325,132.62,132.45,10.0]
[1750541528715,7.54511979,132.54,132.49,10.0]
[1750541528908,7.54511979,132.54,132.39,27.8325]
[1750541528909,18.85326349,132.61,132.47,10.0]
[1750541529108,36.41597955,132.49,132.44,10.0]
[1750541529310,5.68753483,132.5,132.47,10.0]
[1750541529806,5.68753483,132.5,132.39,1.8325]
[1750541529807,5.68753483,132.5,132.49,46.41597955]
[1750541530028,3.68263483,132.5,132.49,46.41597955]
[1750541530338,5.63387885,132.72,132.44,6.3579]
[1750541530339,64.04943107,132.71,132.48,10.0]
[1750541530525,64.04943107,132.71,132.43,10.0]
[1750541530723,71.18741193,132.71,132.49,10.0]
[1750541530933,71.18741193,132.71,132.39,11.8325]
[1750541530934,124.76943107,132.71,132.48,10.0]
[1750541531230,0.79422684,132.7,132.45,10.0]
[1750541531436,0.79422684,132.7,132.38,10.0]
[1750541531437,0.74,132.69,132.38,10.0]
[1750541531631,0.74,132.69,132.33,49.26]
[1750541531632,36.41597955,132.44,132.4,10.0]
[1750541531836,26.0,132.47,132.38,10.0]
[1750541532135,26.0,132.48,132.35,10.0]
[1750541532337,26.0,132.48,132.33,10.0]
[1750541532338,36.41597955,132.36,132.33,10.0]
[1750541532516,26.0,132.46,132.35,10.0]
[1750541532831,26.42506605,132.45,132.33,10.0]
[1750541533009,26.0,132.42,132.31,10.0]
[1750541533210,36.41597955,132.37,132.34,10.0]
[1750541533413,26.0,132.42,132.34,10.0]
[1750541533644,26.42506605,132.45,132.43,10.0]
[1750541533848,37.93595923,132.57,132.25,2.199784]
[1750541533849,36.41597955,132.52,132.49,10.0]
[1750541534018,37.60291835,132.61,132.36,49.1]
[1750541534019,36.41597955,132.61,132.59,10.0]
[1750541534223,26.38522426,132.65,132.44,33.7999]
[1750541534224,7.5386355,132.65,132.63,10.0]
[1750541534417,5.63387885,132.72,132.71,10.0]
[1750541534615,5.63387885,132.72,132.71,56.41597955]
[1750541534826,30.45319496,132.99,132.82,10.0]
[1750541534827,5.63675383,132.83,132.82,10.0]
[1750541535342,5.63675383,132.83,132.75,10.0]
[1750541535917,5.63675383,132.83,132.72,10.0]
[1750541536145,36.41597955,132.74,132.72,10.0]
[1750541536438,36.41597955,132.74,132.65,36.41597955]
[1750541536439,5.63675383,132.83,132.75,10.0]
[1750541536647,36.41597955,132.76,132.69,10.0]
[1750541536847,37.50541986,132.82,132.72,10.0]
[1750541536848,26.35145308,132.82,132.72,10.0]
[1750541537017,26.35145308,132.82,132.64,49.06]
[1750541537018,26.35145308,132.82,132.73,10.0]
[1750541537222,36.41597955,132.74,132.72,10.0]
[1750541537559,63.99638607,132.82,132.71,10.0]
[1750541537729,36.41597955,132.72,132.69,10.0]
[1750541538038,26.35145308,132.82,132.79,10.0]
[1750541538238,5.63675383,132.83,132.82,10.0]
[1750541538239,3.63185383,132.83,132.82,10.0]
[1750541538446,7.52275633,132.93,132.89,10.0]
[1750541538626,18.8018956,132.97,132.92,10.0]
[1750541538944,36.41597955,133.14,132.81,49.0]
[1750541538945,7.51427712,133.08,132.99,10.0]
[1750541539119,7.51427712,133.08,132.89,10.0]
[1750541539120,7.51427712,133.08,133.02,10.0]
[1750541539320,22.601423,133.21,132.78,1.8309]
[1750541539321,7.50976269,133.16,133.07,8.58884798]
[1750541539539,36.41597955,133.14,133.12,8.58884798]
[1750541539848,7.50976269,133.16,133.1,8.58884798]
[1750541540050,7.50976269,133.16,133.11,8.58884798]
[1750541540356,26.28416941,133.16,133.08,8.58884798]
[1750541540515,26.28416941,133.16,133.04,8.58884798]
[1750541540516,27.02416941,133.16,133.04,8.58884798]
[1750541540716,27.02416941,133.16,133.01,8.58884798]
[1750541540935,62.70409731,133.14,133.01,8.58884798]
[1750541541142,26.28811776,133.14,133.02,8.58884798]
[1750541541333,63.84257171,133.14,133.03,8.58884798]
[1750541541527,26.28811776,133.14,133.07,8.58884798]
[1750541541728,36.41597955,133.08,133.07,8.58884798]
[1750541541932,26.28811776,133.14,133.09,8.58884798]
[1750541542134,36.41597955,133.12,133.11,8.58884798]
[1750541542331,7.50885767,133.18,133.15,8.58884798]
[1750541542634,60.4,133.21,132.99,49.0]
[1750541542635,60.4,133.21,133.16,8.58884798]
[1750541542820,18.76586612,133.23,133.15,8.58884798]
[1750541542821,49.45226856,133.17,133.15,8.58884798]
[1750541543028,13.03628901,133.17,133.13,8.58884798]
[1750541543263,13.03628901,133.17,133.1,8.58884798]
[1750541543264,26.0,133.11,133.1,8.58884798]
[1750541543453,26.0,133.11,133.04,8.58884798]
[1750541543454,62.41597955,133.11,133.04,8.58884798]
[1750541543636,26.0,133.11,133.04,8.58884798]
[1750541543838,5.52656687,133.17,133.13,8.58884798]
[1750541544044,5.52656687,133.17,133.13,7.58884798]
[1750541544232,26.0,133.14,133.07,7.58884798]
[1750541544434,36.41597955,133.08,133.07,7.58884798]
[1750541544635,31.80918972,133.17,133.09,7.58884798]
[1750541544831,31.80918972,133.17,133.11,7.58884798]
[1750541545070,31.80918972,133.17,133.12,7.58884798]
[1750541545071,60.32,133.16,133.12,7.58884798]
[1750541545361,13.0361928,133.17,133.12,7.58884798]
[1750541545552,5.52656687,133.17,133.16,7.58884798]
[1750541545760,41.94254642,133.17,133.14,7.58884798]
[1750541546058,7.50976269,133.16,133.1,7.58884798]
[1750541546365,5.52656687,133.17,133.16,7.58884798]
[1750541546967,5.52656687,133.17,133.09,10.0]
[1750541546968,44.60310905,133.24,133.21,7.58884798]
[1750541547263,44.60310905,133.24,133.22,7.58884798]
[1750541547440,7.58884702,133.23,133.22,7.58884798]
[1750541548271,7.58884702,133.23,133.18,7.58884798]
[1750541548471,26.0,133.16,133.14,7.58884798]
[1750541548771,7.50807117,133.19,133.08,7.58884798]
[1750541548984,7.58884702,133.23,133.2,7.58884798]
[1750541549274,0.74,133.36,133.18,18.64964886]
[1750541549275,7.50075007,133.32,133.18,18.64964886]
[1750541549490,7.49986462,133.34,133.2,10.0]
[1750541549673,7.49986462,133.34,133.19,26.0]
[1750541549674,36.41597955,133.28,133.23,18.64964886]
[1750541549987,36.41597955,133.28,133.18,18.64964886]
[1750541549988,7.49906261,133.35,133.2,18.64964886]
[1750541550509,43.91504216,133.35,133.17,48.8]
[1750541550682,36.41597955,133.31,133.24,55.06562841]
[1750541550884,14.19659563,133.39,133.27,18.64964886]
[1750541551086,14.19659563,133.39,133.17,48.8]
[1750541551087,6.69957888,133.39,133.26,10.0]
[1750541551300,6.69957888,133.39,133.28,18.64964886]
[1750541551301,36.41597955,133.32,133.28,18.64964886]
[1750541551579,7.49737591,133.38,133.25,36.41597955]
[1750541551782,36.41597955,133.33,133.27,55.06562841]
[1750541551985,6.69957888,133.39,133.27,18.64964886]
[1750541552190,6.69957888,133.39,133.32,18.64964886]
[1750541552394,6.69957888,133.39,133.33,18.64964886]
[1750541552580,4.69467888,133.39,133.35,18.64964886]
[1750541552970,4.69467888,133.39,133.35,55.06562841]
[1750541553410,1.91347888,133.39,133.37,18.64964886]
[1750541553613,1.91347888,133.39,133.36,18.64964886]
[1750541553787,1.91347888,133.39,133.34,48.78]
[1750541553976,1.91347888,133.39,133.36,18.64964886]
[1750541554180,1.91347888,133.39,133.34,56.27928349]
[1750541554181,7.48951467,133.52,133.4,18.64964886]
[1750541554397,7.8374,133.58,133.4,18.64964886]
[1750541554398,7.48727163,133.56,133.43,18.64964886]
[1750541554615,104.08325118,133.56,133.38,10.0]
[1750541554899,7.48960502,133.52,133.41,7.49565914]
[1750541555111,7.48960502,133.52,133.41,26.145308]
[1750541555413,36.41597955,133.43,133.37,18.64964886]
[1750541555590,26.0,133.5,133.4,18.64964886]
[1750541555778,33.48960502,133.52,133.41,36.41597955]
[1750541555985,26.1978609,133.6,133.44,65.06562841]
[1750541556288,26.1978609,133.6,133.35,26.24646204]
[1750541556289,60.18,133.59,133.43,36.0]
[1750541556508,60.18,133.59,133.42,44.64964886]
[1750541556688,36.41597955,133.56,133.4,26.0]
[1750541556888,97.34719024,133.59,133.35,28.74765654]
[1750541556889,26.94152717,133.58,133.35,28.74765654]
[1750541557102,26.94152717,133.58,133.34,48.78]
[1750541557103,36.41597955,133.47,133.36,26.24475103]
[1750541557300,36.41597955,133.49,133.43,18.64964886]
[1750541557503,60.12,133.55,133.43,81.06562841]
[1750541557705,36.41597955,133.5,133.43,81.06562841]
[1750541557907,36.41597955,133.51,133.43,44.64964886]
[1750541558113,26.94152717,133.58,133.43,44.64964886]
[1750541558114,36.41597955,133.5,133.43,44.64964886]
[1750541558321,87.06152717,133.58,133.44,7.49400479]
[1750541558612,36.41597955,133.48,133.45,18.64964886]
[1750541558819,36.41597955,133.46,133.36,10.0]
[1750541559123,36.41597955,133.46,133.28,7.7054]
[1750541559124,26.0,133.45,133.3,58.92920555]
[1750541559286,0.74,133.52,133.34,56.27927797]
[1750541559489,60.08,133.51,133.38,18.64964886]
[1750541559690,36.41597955,133.41,133.37,26.0]
[1750541560004,36.41597955,133.41,133.34,66.27927797]
[1750541560005,60.08,133.51,133.34,48.78]
[1750541560204,26.0,133.45,133.34,48.78]
[1750541560417,36.41597955,133.35,133.34,48.78]
[1750541560935,67.57780284,133.38,133.34,48.78]
[1750541561096,7.49663472,133.4,133.34,48.78]
[1750541561433,36.41597955,133.35,133.34,48.78]
[1750541561788,7.49663472,133.4,133.34,48.78]
[1750541561789,26.0,133.39,133.34,48.78]
[1750541562017,36.41597955,133.35,133.34,48.78]
[1750541562222,7.49663472,133.4,133.21,10.0]
[1750541562223,26.0,133.37,133.21,10.0]
[1750541562398,36.41597955,133.25,133.19,43.92405072]
[1750541562584,26.0,133.35,133.19,7.50807117]
[1750541562787,26.0,133.3,133.17,7.50868616]
[1750541563007,36.41597955,133.18,133.16,48.64]
[1750541563209,60.06,133.22,133.16,48.64]
[1750541563627,26.0,133.22,133.16,48.64]
[1750541563946,36.41597955,133.17,133.16,48.64]
[1750541564310,36.41597955,133.17,133.04,7.51653638]
[1750541564555,26.0,133.2,133.04,26.30787733]
[1750541564846,26.0,133.2,133.04,52.30787733]
[1750541565034,36.41597955,133.07,133.04,7.51653638]
[1750541565237,60.08,133.18,133.05,10.0]
[1750541565450,36.41597955,133.14,133.06,18.64964886]
[1750541565652,0.73,133.26,133.09,18.64964886]
[1750541565868,36.41597955,133.16,133.06,10.0]
[1750541566036,36.41597955,133.16,133.04,63.89055923]
[1750541566037,26.0,133.22,133.05,18.64964886]
[1750541566235,26.0,133.22,133.04,89.89055923]
[1750541566420,60.08,133.25,133.06,26.30392303]
[1750541566773,60.08,133.25,133.11,18.64964886]
[1750541566924,36.41597955,133.19,133.14,18.64964886]
[1750541567123,36.41597955,133.19,133.09,26.0]
[1750541567124,60.08,133.25,133.1,18.64964886]
[1750541567319,36.41597955,133.17,133.1,18.64964886]
[1750541567524,26.0,133.22,133.12,18.64964886]
[1750541567824,26.0,133.22,133.12,36.41597955]
[1750541568045,60.08,133.25,133.15,36.41597955]
[1750541568245,36.41597955,133.19,133.13,36.41597955]
[1750541568448,26.0,133.22,133.03,32.16361726]
[1750541568756,10.72999904,133.26,133.17,36.41597955]
[1750541568927,36.41597955,133.28,133.04,18.65547688]
[1750541569129,36.41597955,133.29,133.06,37.57703291]
[1750541569328,36.41597955,133.3,133.14,36.41597955]
[1750541569559,36.41597955,133.28,133.22,36.41597955]
[1750541569756,36.41597955,133.28,133.07,6.82093239]
[1750541569757,36.41597955,133.29,133.24,36.41597955]
[1750541569930,36.41597955,133.28,133.2,48.68]
[1750541570270,9.99999904,133.3,133.2,85.09597955]
[1750541570467,60.1,133.35,133.23,26.27035952]
[1750541570468,36.41597955,133.28,133.23,26.27035952]
[1750541570686,36.41597955,133.26,133.23,26.27035952]
[1750541570893,26.0,133.31,133.23,62.68633907]
[1750541571185,36.41597955,133.33,133.28,36.41597955]
[1750541571356,10.72999904,133.39,133.29,36.41597955]
[1750541571555,36.41597955,133.35,133.3,36.41597955]
[1750541571751,9.99999904,133.4,133.31,36.41597955]
[1750541571968,9.99999904,133.4,133.33,36.41597955]
[1750541572182,9.99999904,133.4,133.28,18.64964886]
[1750541572489,36.41597955,133.41,133.27,26.0]
[1750541572774,36.41597955,133.4,133.31,26.0]
[1750541572979,36.41597955,133.39,133.34,36.41597955]
[1750541573152,36.41597955,133.4,133.34,36.41597955]
[1750541573354,60.83,133.46,133.36,36.41597955]
[1750541573560,9.99999904,133.49,133.37,48.66]
[1750541573884,3.3287,133.53,133.37,48.66]
[1750541573885,36.41597955,133.45,133.37,48.66]
[1750541574181,36.41597955,133.42,133.37,48.66]
[1750541574381,60.06,133.52,133.37,48.66]
[1750541574382,36.41597955,133.41,133.37,48.66]
[1750541574588,9.99999904,133.46,133.38,7.49737591]
[1750541574776,9.99999904,133.48,133.39,36.41597955]
[1750541575088,36.41597955,133.45,133.38,26.2408157]
[1750541575255,46.41597859,133.45,133.39,36.41597955]
[1750541575447,46.41597859,133.45,133.38,26.2408157]
[1750541575448,36.41597955,133.44,133.38,26.2408157]
[1750541575687,9.99999904,133.5,133.39,36.41597955]
[1750541575888,36.41597955,133.45,133.4,36.41597955]
[1750541576062,9.99999904,133.5,133.38,26.2408157]
[1750541576262,36.41597955,133.47,133.41,36.41597955]
[1750541576454,9.99999904,133.51,133.42,36.41597955]
[1750541576661,36.41597955,133.47,133.43,7.49456643]
[1750541577056,0.73,133.53,133.44,36.41597955]
[1750541577258,36.41597955,133.48,133.43,7.49456643]
[1750541577463,36.41597955,133.47,133.39,26.0]
[1750541577957,36.41597955,133.4,133.37,48.66]
[1750541578178,46.41597859,133.38,133.37,48.66]
[1750541578504,9.99999904,133.38,133.37,48.66]
[1750541578798,36.41597955,133.41,133.37,48.66]
[1750541578968,26.0,133.4,133.37,48.66]
[1750541579169,36.41597955,133.38,133.37,48.66]
[1750541579908,9.99999904,133.38,133.37,48.66]
[1750541580071,36.41597955,133.38,133.37,48.66]
[1750541580272,26.0,133.35,133.28,7.50249398]
[1750541580492,26.0,133.37,133.28,43.91847353]
[1750541580693,26.0,133.39,133.32,36.41597955]
[1750541580997,26.0,133.39,133.28,7.50249398]
[1750541580998,26.0,133.39,133.3,36.41597955]
[1750541581209,9.99999904,133.41,133.3,36.41597955]
[1750541581380,9.99999904,133.37,133.28,62.67597653]
[1750541581706,36.41597955,133.35,133.28,26.25999698]
[1750541581872,9.99999904,133.35,133.28,26.25999698]
[1750541582077,36.41597955,133.37,133.28,26.25999698]
[1750541582399,36.41597955,133.3,133.28,7.50249398]
[1750541582572,9.99999904,133.32,133.28,7.50249398]
[1750541582773,36.41597955,133.29,133.25,26.2656407]
[1750541582992,36.41597955,133.29,133.25,7.50469043]
[1750541582993,9.99999904,133.29,133.25,7.50469043]
[1750541583196,26.0,133.31,133.25,7.50469043]
[1750541583197,9.99999904,133.28,133.25,7.50469043]
[1750541583375,36.41597955,133.26,133.1,22.541985]
[1750541583578,36.41597955,133.16,133.1,36.41597955]
[1750541583875,36.41597955,133.16,133.04,48.62]
[1750541583876,9.99999904,133.25,133.15,36.41597955]
[1750541584088,36.41597955,133.29,133.06,18.61100854]
[1750541584299,36.41597955,133.29,133.12,18.64964886]
[1750541584483,36.41597955,133.2,133.07,18.78583951]
[1750541584690,36.41597955,133.16,133.07,26.30068132]
[1750541584911,36.41597955,133.13,133.08,48.62]
[1750541585204,36.41597955,133.09,133.08,48.62]
[1750541585517,46.41597859,133.09,133.08,48.62]
[1750541585682,9.99999904,133.12,133.08,48.62]
[1750541585875,36.41597955,133.17,133.08,48.62]
[1750541586207,9.99999904,133.25,133.08,48.62]
[1750541586416,36.41597955,133.25,133.09,18.64964886]
[1750541586706,9.99999904,133.18,133.09,7.51371252]
[1750541586874,9.99999904,133.18,133.08,48.62]
[1750541586875,9.99999904,133.09,133.08,48.62]
[1750541587075,9.99999904,133.09,132.93,7.90930854]
[1750541587076,9.99999904,133.06,132.96,36.41597955]
[1750541587275,9.99999904,133.06,132.94,48.64]
[1750541587276,60.06,133.07,133.02,36.41597955]
[1750541587470,10.0,133.19,132.94,48.64]
[1750541587471,36.41597955,133.11,133.05,36.41597955]
[1750541587670,9.99999904,133.14,132.95,18.64964886]
[1750541587907,36.41597955,133.13,133.07,36.41597955]
[1750541588204,60.06,133.16,133.08,36.41597955]
[1750541588504,60.06,133.16,133.04,18.64964886]
[1750541588672,9.99999904,133.21,133.15,36.41597955]
[1750541588875,36.41597955,133.24,133.16,48.66]
[1750541589072,10.72999904,133.26,133.16,48.66]
[1750541589073,36.41597955,133.17,133.16,48.66]
[1750541589273,10.72999904,133.18,133.16,48.66]
[1750541589475,36.41597955,133.17,133.16,48.16]
[1750541590125,107.22597859,133.17,133.16,43.739311]
[1750541590420,107.22597859,133.17,133.16,40.778111]
[1750541590720,9.99999904,133.09,133.03,18.79239076]
[1750541590926,9.99999904,133.07,133.01,122.66709912]
[1750541591109,9.99999904,133.1,133.04,18.79134095]
[1750541591276,9.99999904,133.15,133.09,36.41597955]
[1750541591480,9.99999904,133.17,133.13,36.41597955]
[1750541591689,9.99999904,133.21,133.05,18.64964886]
[1750541592006,36.41597955,133.19,133.13,36.41597955]
[1750541592206,36.41597955,133.17,133.11,36.41597955]
[1750541592380,9.99999904,133.15,133.05,18.64964886]
[1750541592583,60.08,133.22,133.11,36.41597955]
[1750541592584,9.99999904,133.2,133.11,36.41597955]
[1750541592901,60.08,133.22,133.05,18.64964886]
[1750541592902,9.99999904,133.17,133.13,36.41597955]
[1750541593122,36.41597955,133.16,133.12,26.2920673]
[1750541593317,9.99999904,133.15,133.12,62.70804685]
[1750541593613,60.08,133.22,133.1,7.513148]